[Event "Early-Titled-Tuesday-Blitz-March-19-2024"]
[Site "Chess.com"]
[Date "2024.03.19"]
[Round "7"]
[White "Chessbard1972"]
[Black "nicolasbatista3"]
[Result "0-1"]
[WhiteElo "2325"]
[BlackElo "2480"]
[TimeControl "180+1"]
[EndTime "9:20:02 PDT"]
[Termination "nicolasbatista3 won by checkmate"]

1. d4 {[%clk 0:02:52.9]} 1... d5 {[%clk 0:02:58.8]} 2. c4 {[%clk 0:02:52.1]}
2... c6 {[%clk 0:02:59]} 3. Nf3 {[%clk 0:02:51.4]} 3... Nf6 {[%clk 0:02:58.9]}
4. Nc3 {[%clk 0:02:46.6]} 4... e6 {[%clk 0:02:57.6]} 5. Bg5 {[%clk 0:02:46]}
5... Be7 {[%clk 0:02:57.6]} 6. e3 {[%clk 0:02:44.5]} 6... Nbd7 {[%clk
0:02:54.1]} 7. cxd5 {[%clk 0:02:43.3]} 7... exd5 {[%clk 0:02:53.9]} 8. Qc2
{[%clk 0:02:43.4]} 8... h6 {[%clk 0:02:54.3]} 9. Bf4 {[%clk 0:02:41.5]} 9... Nh5
{[%clk 0:02:50.8]} 10. Nxd5 {[%clk 0:02:22.4]} 10... cxd5 {[%clk 0:02:36.3]} 11.
Bc7 {[%clk 0:02:21.3]} 11... Bb4+ {[%clk 0:02:36.3]} 12. Kd1 {[%clk 0:02:19.4]}
12... Qe7 {[%clk 0:02:33.6]} 13. Bd3 {[%clk 0:02:10.2]} 13... O-O {[%clk
0:02:18.5]} 14. Rc1 {[%clk 0:02:04.1]} 14... Nhf6 {[%clk 0:02:13.2]} 15. Qb3
{[%clk 0:02:02.1]} 15... Bd6 {[%clk 0:02:08.2]} 16. Ba5 {[%clk 0:02:00.6]} 16...
b6 {[%clk 0:02:02.2]} 17. Bc3 {[%clk 0:01:58.9]} 17... Ne4 {[%clk 0:01:35.6]}
18. Be1 {[%clk 0:01:55.7]} 18... Bb7 {[%clk 0:01:31.7]} 19. Kc2 {[%clk
0:01:55.4]} 19... a5 {[%clk 0:01:22.1]} 20. a4 {[%clk 0:01:52]} 20... Bb4 {[%clk
0:01:20.5]} 21. Bxb4 {[%clk 0:01:36]} 21... axb4 {[%clk 0:01:20.7]} 22. Rhf1
{[%clk 0:01:33.2]} 22... Bc6 {[%clk 0:01:19.8]} 23. Bb5 {[%clk 0:01:27.1]} 23...
Bxb5 {[%clk 0:01:12.9]} 24. axb5 {[%clk 0:01:27]} 24... Ndf6 {[%clk 0:01:09.9]}
25. Ne5 {[%clk 0:01:20.5]} 25... Nd6 {[%clk 0:00:47.3]} 26. Qxb4 {[%clk
0:01:16]} 26... Rfc8+ {[%clk 0:00:18]} 27. Kd3 {[%clk 0:01:14.2]} 27... Nf5
{[%clk 0:00:11.2]} 28. Qxe7 {[%clk 0:01:10.6]} 28... Nxe7 {[%clk 0:00:12.1]} 29.
f3 {[%clk 0:01:06.2]} 29... Kf8 {[%clk 0:00:11.3]} 30. g4 {[%clk 0:01:04]} 30...
Ke8 {[%clk 0:00:11]} 31. h4 {[%clk 0:01:03.7]} 31... Nd7 {[%clk 0:00:11.4]} 32.
Nc6 {[%clk 0:00:55.7]} 32... Nxc6 {[%clk 0:00:07.9]} 33. bxc6 {[%clk 0:00:55.7]}
33... Nb8 {[%clk 0:00:08.4]} 34. c7 {[%clk 0:00:53]} 34... Na6 {[%clk 0:00:09]}
35. g5 {[%clk 0:00:44.4]} 35... hxg5 {[%clk 0:00:07.4]} 36. hxg5 {[%clk
0:00:43.7]} 36... Rxc7 {[%clk 0:00:07.7]} 37. Ra1 {[%clk 0:00:42.3]} 37... Nb4+
{[%clk 0:00:07.9]} 38. Kd2 {[%clk 0:00:39.2]} 38... Rxa1 {[%clk 0:00:08.8]} 39.
Rxa1 {[%clk 0:00:38.6]} 39... Rc2+ {[%clk 0:00:09.7]} 40. Kd1 {[%clk 0:00:38.9]}
40... Rxb2 {[%clk 0:00:07.5]} 41. Ra8+ {[%clk 0:00:36.8]} 41... Ke7 {[%clk
0:00:07.5]} 42. Ra7+ {[%clk 0:00:37]} 42... Ke6 {[%clk 0:00:07.4]} 43. Rb7
{[%clk 0:00:36.6]} 43... Nd3 {[%clk 0:00:07]} 44. e4 {[%clk 0:00:33.1]} 44...
dxe4 {[%clk 0:00:07.1]} 45. fxe4 {[%clk 0:00:33]} 45... f6 {[%clk 0:00:06.6]}
46. g6 {[%clk 0:00:32.2]} 46... f5 {[%clk 0:00:04.3]} 47. exf5+ {[%clk
0:00:26.5]} 47... Kf6 {[%clk 0:00:04.8]} 48. Rf7+ {[%clk 0:00:25.9]} 48... Kg5
{[%clk 0:00:04.1]} 49. f6 {[%clk 0:00:21.3]} 49... Kxg6 {[%clk 0:00:01.4]} 50.
Rxg7+ {[%clk 0:00:20.3]} 50... Kxf6 {[%clk 0:00:02]} 51. Rg3 {[%clk 0:00:19.8]}
51... Kf5 {[%clk 0:00:02.6]} 52. Rxd3 {[%clk 0:00:19.7]} 52... Ke4 {[%clk
0:00:03.1]} 53. Rd2 {[%clk 0:00:18.7]} 53... Rxd2+ {[%clk 0:00:03.3]} 54. Kxd2
{[%clk 0:00:19.1]} 54... Kxd4 {[%clk 0:00:04.2]} 55. Kc2 {[%clk 0:00:19.6]}
55... Kc4 {[%clk 0:00:04.7]} 56. Kb2 {[%clk 0:00:20.1]} 56... Kb4 {[%clk
0:00:05.3]} 57. Ka2 {[%clk 0:00:20.5]} 57... Kc3 {[%clk 0:00:05.8]} 58. Ka3
{[%clk 0:00:20.9]} 58... b5 {[%clk 0:00:06]} 59. Ka2 {[%clk 0:00:21]} 59... Kc2
{[%clk 0:00:05.9]} 60. Ka3 {[%clk 0:00:20.7]} 60... Kc3 {[%clk 0:00:06.6]} 61.
Ka2 {[%clk 0:00:21.1]} 61... b4 {[%clk 0:00:07]} 62. Ka1 {[%clk 0:00:20.3]}
62... Kc2 {[%clk 0:00:06.8]} 63. Ka2 {[%clk 0:00:20.3]} 63... b3+ {[%clk
0:00:07.6]} 64. Ka3 {[%clk 0:00:21.1]} 64... b2 {[%clk 0:00:08.3]} 65. Kb4
{[%clk 0:00:22]} 65... b1=Q+ {[%clk 0:00:08.9]} 66. Kc5 {[%clk 0:00:22.9]} 66...
Qb3 {[%clk 0:00:09.4]} 67. Kd6 {[%clk 0:00:23.1]} 67... Kc3 {[%clk 0:00:10.1]}
68. Ke7 {[%clk 0:00:24]} 68... Qc4 {[%clk 0:00:10.9]} 69. Kf6 {[%clk 0:00:24.9]}
69... Kd3 {[%clk 0:00:11.8]} 70. Kg5 {[%clk 0:00:25.8]} 70... Qd4 {[%clk
0:00:12.7]} 71. Kf5 {[%clk 0:00:26.4]} 71... Kc4 {[%clk 0:00:13.2]} 72. Ke6
{[%clk 0:00:26.9]} 72... Qd5+ {[%clk 0:00:13.2]} 73. Kf6 {[%clk 0:00:27.1]}
73... Kc5 {[%clk 0:00:13.6]} 74. Ke7 {[%clk 0:00:27.5]} 74... Qc6 {[%clk
0:00:14.1]} 75. Kd8 {[%clk 0:00:27.1]} 75... Qb7 {[%clk 0:00:14.4]} 76. Ke8
{[%clk 0:00:27.2]} 76... Kd6 {[%clk 0:00:15.1]} 77. Kf8 {[%clk 0:00:28]} 77...
Ke6 {[%clk 0:00:15.8]} 78. Kg8 {[%clk 0:00:28.9]} 78... Kf6 {[%clk 0:00:14.8]}
79. Kh8 {[%clk 0:00:29.8]} 79... Qg7# {[%clk 0:00:14.9]} 0-1

[Event "Early-Titled-Tuesday-Blitz-March-19-2024"]
[Site "Chess.com"]
[Date "2024.03.19"]
[Round "7"]
[White "The_Machine04"]
[Black "AlexanderKing"]
[Result "0-1"]
[WhiteElo "2817"]
[BlackElo "2641"]
[TimeControl "180+1"]
[EndTime "9:20:06 PDT"]
[Termination "AlexanderKing won by resignation"]

1. d4 {[%clk 0:02:59.4]} 1... d5 {[%clk 0:02:59]} 2. Nf3 {[%clk 0:02:59.3]} 2...
c5 {[%clk 0:02:59.2]} 3. e3 {[%clk 0:02:59.1]} 3... Nf6 {[%clk 0:02:59.2]} 4.
Nbd2 {[%clk 0:02:57.9]} 4... e6 {[%clk 0:02:47.9]} 5. b3 {[%clk 0:02:47]} 5...
Nc6 {[%clk 0:02:42.6]} 6. Bb2 {[%clk 0:02:45.3]} 6... cxd4 {[%clk 0:02:33.8]} 7.
exd4 {[%clk 0:02:45.1]} 7... Bd6 {[%clk 0:02:34.4]} 8. Bd3 {[%clk 0:02:42.8]}
8... Qc7 {[%clk 0:02:18.8]} 9. a3 {[%clk 0:02:42]} 9... O-O {[%clk 0:02:15.3]}
10. O-O {[%clk 0:02:36]} 10... e5 {[%clk 0:02:08.7]} 11. dxe5 {[%clk 0:02:34.7]}
11... Nxe5 {[%clk 0:02:09.6]} 12. Nxe5 {[%clk 0:02:35.2]} 12... Bxe5 {[%clk
0:02:10.5]} 13. Bxe5 {[%clk 0:02:35.7]} 13... Qxe5 {[%clk 0:02:11.4]} 14. Nf3
{[%clk 0:02:35.4]} 14... Qc7 {[%clk 0:02:03.2]} 15. h3 {[%clk 0:02:34.1]} 15...
Re8 {[%clk 0:02:00]} 16. Re1 {[%clk 0:02:32.2]} 16... Bd7 {[%clk 0:01:56.7]} 17.
Qd2 {[%clk 0:02:31.4]} 17... h6 {[%clk 0:01:54.3]} 18. Qb4 {[%clk 0:02:28.4]}
18... b6 {[%clk 0:01:50.9]} 19. Qd4 {[%clk 0:02:25.8]} 19... Qc5 {[%clk
0:01:49.4]} 20. b4 {[%clk 0:02:23.4]} 20... Qxd4 {[%clk 0:01:43.7]} 21. Nxd4
{[%clk 0:02:24.3]} 21... Kf8 {[%clk 0:01:39]} 22. f3 {[%clk 0:02:18.2]} 22...
Rxe1+ {[%clk 0:01:32.6]} 23. Rxe1 {[%clk 0:02:10.4]} 23... a5 {[%clk 0:01:32.9]}
24. Kf2 {[%clk 0:02:03.5]} 24... axb4 {[%clk 0:01:19.8]} 25. axb4 {[%clk
0:02:04.4]} 25... Ra4 {[%clk 0:01:20]} 26. Rb1 {[%clk 0:02:03.8]} 26... Ke7
{[%clk 0:01:12.8]} 27. h4 {[%clk 0:01:58.2]} 27... h5 {[%clk 0:01:05.4]} 28. Ke3
{[%clk 0:01:49.8]} 28... Ne8 {[%clk 0:00:44.9]} 29. Kd2 {[%clk 0:01:23]} 29...
Nc7 {[%clk 0:00:38]} 30. Re1+ {[%clk 0:01:16.6]} 30... Kf6 {[%clk 0:00:28.7]}
31. Kc3 {[%clk 0:01:12.9]} 31... Ra7 {[%clk 0:00:09.3]} 32. Nb3 {[%clk
0:01:06.6]} 32... Ne6 {[%clk 0:00:07.3]} 33. g3 {[%clk 0:01:04.1]} 33... Rc7+
{[%clk 0:00:07.4]} 34. Kd2 {[%clk 0:01:03.7]} 34... Ba4 {[%clk 0:00:08.1]} 35.
Nc1 {[%clk 0:00:59.5]} 35... Nd4 {[%clk 0:00:06.4]} 36. Re3 {[%clk 0:00:39.4]}
36... Nxc2 {[%clk 0:00:06.5]} 37. Re2 {[%clk 0:00:28.6]} 37... Nxb4 {[%clk
0:00:06.2]} 38. Re1 {[%clk 0:00:17.9]} 38... Bd7 {[%clk 0:00:03.4]} 39. Nb3
{[%clk 0:00:13.5]} 39... Nc6 {[%clk 0:00:03.2]} 40. f4 {[%clk 0:00:04.3]} 40...
Na5 {[%clk 0:00:01.2]} 41. Nxa5 {[%clk 0:00:03.5]} 41... bxa5 {[%clk 0:00:02.1]}
42. Re5 {[%clk 0:00:03.3]} 42... Be6 {[%clk 0:00:02.3]} 43. Rxh5 {[%clk
0:00:02.6]} 43... a4 {[%clk 0:00:03]} 44. Rh8 {[%clk 0:00:02.7]} 44... Ra7
{[%clk 0:00:03.3]} 45. Bb1 {[%clk 0:00:02.6]} 45... a3 {[%clk 0:00:03.9]} 46.
Ba2 {[%clk 0:00:03]} 46... d4 {[%clk 0:00:04.7]} 47. Bxe6 {[%clk 0:00:01.7]}
47... fxe6 {[%clk 0:00:05.3]} 48. Rf8+ {[%clk 0:00:02.1]} 48... Ke7 {[%clk
0:00:05.9]} 49. Rg8 {[%clk 0:00:02.7]} 49... Kf7 {[%clk 0:00:06.2]} 50. Rc8
{[%clk 0:00:02.1]} 50... a2 {[%clk 0:00:06.7]} 51. Rc1 {[%clk 0:00:03]} 51...
a1=Q {[%clk 0:00:07.4]} 52. Rxa1 {[%clk 0:00:03.3]} 52... Rxa1 {[%clk
0:00:08.3]} 53. Kd3 {[%clk 0:00:04.2]} 53... Ra3+ {[%clk 0:00:08.7]} 54. Kxd4
{[%clk 0:00:05.1]} 54... Rxg3 {[%clk 0:00:09.5]} 55. Ke5 {[%clk 0:00:06]} 55...
Rh3 {[%clk 0:00:09.9]} 56. Ke4 {[%clk 0:00:06.1]} 56... Rxh4 {[%clk 0:00:10.7]}
57. Ke5 {[%clk 0:00:05.8]} 57... Rh5+ {[%clk 0:00:11.6]} 0-1

[Event "Early-Titled-Tuesday-Blitz-March-19-2024"]
[Site "Chess.com"]
[Date "2024.03.19"]
[Round "7"]
[White "angelgab3"]
[Black "Arteler"]
[Result "1-0"]
[WhiteElo "2655"]
[BlackElo "2378"]
[TimeControl "180+1"]
[EndTime "9:20:06 PDT"]
[Termination "angelgab3 won on time"]

1. e4 {[%clk 0:02:47.5]} 1... e6 {[%clk 0:02:59.9]} 2. d4 {[%clk 0:02:37.3]}
2... d5 {[%clk 0:02:58]} 3. Nc3 {[%clk 0:02:34.9]} 3... Nf6 {[%clk 0:02:57.7]}
4. Bg5 {[%clk 0:02:33.9]} 4... Be7 {[%clk 0:02:56.9]} 5. e5 {[%clk 0:02:33.6]}
5... Nfd7 {[%clk 0:02:57.4]} 6. Bxe7 {[%clk 0:02:34.5]} 6... Qxe7 {[%clk
0:02:58.3]} 7. Nb5 {[%clk 0:02:35.4]} 7... Nb6 {[%clk 0:02:58.4]} 8. f4 {[%clk
0:02:35.2]} 8... a6 {[%clk 0:02:58.7]} 9. Na3 {[%clk 0:02:27.1]} 9... c5 {[%clk
0:02:56.1]} 10. c3 {[%clk 0:02:26.8]} 10... Nc6 {[%clk 0:02:56.1]} 11. Nf3
{[%clk 0:02:27.4]} 11... cxd4 {[%clk 0:02:44.1]} 12. cxd4 {[%clk 0:02:28.3]}
12... O-O {[%clk 0:02:36.6]} 13. Bd3 {[%clk 0:02:25.1]} 13... Qb4+ {[%clk
0:02:32.1]} 14. Qd2 {[%clk 0:02:24.7]} 14... Na4 {[%clk 0:02:22.9]} 15. Qxb4
{[%clk 0:01:54.1]} 15... Nxb4 {[%clk 0:02:22.5]} 16. Be2 {[%clk 0:01:55]} 16...
Nxb2 {[%clk 0:02:18.7]} 17. Rb1 {[%clk 0:01:53.5]} 17... N2d3+ {[%clk
0:02:05.5]} 18. Kd2 {[%clk 0:01:53.2]} 18... Nf2 {[%clk 0:01:57.3]} 19. Rxb4
{[%clk 0:01:53]} 19... Nxh1 {[%clk 0:01:57.2]} 20. Ke3 {[%clk 0:01:53.9]} 20...
Bd7 {[%clk 0:01:39.2]} 21. Rxb7 {[%clk 0:01:52.7]} 21... Bb5 {[%clk 0:01:33.2]}
22. Bd1 {[%clk 0:00:49.2]} 22... Rfb8 {[%clk 0:01:29.2]} 23. Rxb8+ {[%clk
0:00:41.4]} 23... Rxb8 {[%clk 0:01:29.3]} 24. Nd2 {[%clk 0:00:42.3]} 24... Bf1
{[%clk 0:01:17]} 25. Nxf1 {[%clk 0:00:39.5]} 25... Rb2 {[%clk 0:01:15.6]} 26.
Nd2 {[%clk 0:00:37]} 26... Rxa2 {[%clk 0:01:09.7]} 27. Nab1 {[%clk 0:00:36.4]}
27... a5 {[%clk 0:01:06.2]} 28. g4 {[%clk 0:00:35.2]} 28... a4 {[%clk 0:01:06]}
29. Bf3 {[%clk 0:00:28.1]} 29... Ra1 {[%clk 0:00:50.3]} 30. Bxh1 {[%clk
0:00:21.6]} 30... a3 {[%clk 0:00:50.6]} 31. Nxa3 {[%clk 0:00:22.2]} 31... Rxa3+
{[%clk 0:00:50.6]} 32. Kf2 {[%clk 0:00:20.5]} 32... Rd3 {[%clk 0:00:48.7]} 33.
Nf3 {[%clk 0:00:18.2]} 33... h6 {[%clk 0:00:47.2]} 34. Bg2 {[%clk 0:00:18.7]}
34... Ra3 {[%clk 0:00:46.1]} 35. Bf1 {[%clk 0:00:18.8]} 35... Ra2+ {[%clk
0:00:45.5]} 36. Ke3 {[%clk 0:00:19.4]} 36... Ra3+ {[%clk 0:00:43.7]} 37. Bd3
{[%clk 0:00:20.1]} 37... Kf8 {[%clk 0:00:40.6]} 38. h4 {[%clk 0:00:20.3]} 38...
g6 {[%clk 0:00:35.2]} 39. Nd2 {[%clk 0:00:17.3]} 39... Ra1 {[%clk 0:00:27.4]}
40. f5 {[%clk 0:00:16.6]} 40... gxf5 {[%clk 0:00:26.2]} 41. gxf5 {[%clk
0:00:17.5]} 41... Rh1 {[%clk 0:00:20.6]} 42. Nf3 {[%clk 0:00:17.2]} 42... Rh3
{[%clk 0:00:19.3]} 43. Kf4 {[%clk 0:00:17.1]} 43... Kg7 {[%clk 0:00:17.4]} 44.
f6+ {[%clk 0:00:17]} 44... Kf8 {[%clk 0:00:16.1]} 45. Kg4 {[%clk 0:00:16.8]}
45... Rh1 {[%clk 0:00:15.8]} 46. Kh5 {[%clk 0:00:17.1]} 46... Rd1 {[%clk
0:00:13]} 47. Be2 {[%clk 0:00:17]} 47... Ra1 {[%clk 0:00:10.9]} 48. Kxh6 {[%clk
0:00:13.9]} 48... Ra2 {[%clk 0:00:10.9]} 49. Bd1 {[%clk 0:00:13.9]} 49... Ra1
{[%clk 0:00:10.5]} 50. Bc2 {[%clk 0:00:08.3]} 50... Ra2 {[%clk 0:00:07.7]} 51.
Bh7 {[%clk 0:00:08]} 51... Rf2 {[%clk 0:00:06.5]} 52. Ng5 {[%clk 0:00:07.3]}
52... Rd2 {[%clk 0:00:04.4]} 53. Bg6 {[%clk 0:00:04.4]} 53... fxg6 {[%clk
0:00:03.4]} 54. Kxg6 {[%clk 0:00:05.3]} 54... Rxd4 {[%clk 0:00:02.6]} 55. Nxe6+
{[%clk 0:00:05.5]} 55... Ke8 {[%clk 0:00:01.9]} 56. Nxd4 {[%clk 0:00:06.4]}
56... Kf8 {[%clk 0:00:01.6]} 57. e6 {[%clk 0:00:06.2]} 57... Ke8 {[%clk
0:00:01.7]} 58. e7 {[%clk 0:00:05.5]} 1-0

[Event "Early-Titled-Tuesday-Blitz-March-19-2024"]
[Site "Chess.com"]
[Date "2024.03.19"]
[Round "7"]
[White "nabukatnezarr"]
[Black "BardArtem"]
[Result "1-0"]
[WhiteElo "2584"]
[BlackElo "2807"]
[TimeControl "180+1"]
[EndTime "9:20:08 PDT"]
[Termination "nabukatnezarr won on time"]

1. Nf3 {[%clk 0:03:00.9]} 1... d5 {[%clk 0:02:57.6]} 2. g3 {[%clk 0:02:59.9]}
2... Nd7 {[%clk 0:02:57.6]} 3. d4 {[%clk 0:02:55.1]} 3... Ngf6 {[%clk
0:02:57.1]} 4. Bg2 {[%clk 0:02:54.2]} 4... e6 {[%clk 0:02:56.5]} 5. O-O {[%clk
0:02:54.3]} 5... c6 {[%clk 0:02:57.1]} 6. Nbd2 {[%clk 0:02:52.8]} 6... Be7
{[%clk 0:02:50.4]} 7. c3 {[%clk 0:02:52.8]} 7... O-O {[%clk 0:02:50.1]} 8. Qc2
{[%clk 0:02:53.4]} 8... c5 {[%clk 0:02:49.7]} 9. e4 {[%clk 0:02:52.5]} 9... dxe4
{[%clk 0:02:45.3]} 10. Nxe4 {[%clk 0:02:49.6]} 10... Nxe4 {[%clk 0:02:45.7]} 11.
Qxe4 {[%clk 0:02:50.5]} 11... Nf6 {[%clk 0:02:46.1]} 12. Qe2 {[%clk 0:02:49.7]}
12... Qb6 {[%clk 0:02:40.3]} 13. a4 {[%clk 0:02:45.3]} 13... Bd7 {[%clk
0:02:33.3]} 14. a5 {[%clk 0:02:43.8]} 14... Qc7 {[%clk 0:02:19.7]} 15. Bf4
{[%clk 0:02:40.3]} 15... Bd6 {[%clk 0:02:19.6]} 16. Bxd6 {[%clk 0:02:28.5]}
16... Qxd6 {[%clk 0:02:18.8]} 17. dxc5 {[%clk 0:02:29.4]} 17... Qxc5 {[%clk
0:02:17.7]} 18. Ne5 {[%clk 0:02:30.1]} 18... Rab8 {[%clk 0:02:07.8]} 19. Rfd1
{[%clk 0:02:18]} 19... Qc7 {[%clk 0:02:05.4]} 20. Rd4 {[%clk 0:02:10.8]} 20...
Rfc8 {[%clk 0:01:45.3]} 21. Rc4 {[%clk 0:02:02.5]} 21... Qd8 {[%clk 0:01:31.9]}
22. Rd1 {[%clk 0:01:54.9]} 22... Rxc4 {[%clk 0:01:09.6]} 23. Qxc4 {[%clk
0:01:55.8]} 23... Qe8 {[%clk 0:00:25.1]} 24. Nxd7 {[%clk 0:01:16]} 24... Nxd7
{[%clk 0:00:26]} 25. Qc7 {[%clk 0:01:15.8]} 25... Nf6 {[%clk 0:00:23.8]} 26.
Bxb7 {[%clk 0:01:15.3]} 26... h5 {[%clk 0:00:19.4]} 27. a6 {[%clk 0:01:14.8]}
27... h4 {[%clk 0:00:17]} 28. Rd4 {[%clk 0:01:12.9]} 28... h3 {[%clk 0:00:11]}
29. f3 {[%clk 0:00:33]} 29... Nd5 {[%clk 0:00:08.8]} 30. Qe5 {[%clk 0:00:28.9]}
30... Rd8 {[%clk 0:00:02.7]} 31. Qh5 {[%clk 0:00:28.2]} 31... Nf6 {[%clk
0:00:02.1]} 32. Qxh3 {[%clk 0:00:26.1]} 32... Rxd4 {[%clk 0:00:02.9]} 33. cxd4
{[%clk 0:00:27]} 33... Qa4 {[%clk 0:00:03.4]} 34. Qh4 {[%clk 0:00:26.7]} 34...
Qd1+ {[%clk 0:00:03.8]} 35. Kg2 {[%clk 0:00:27.4]} 35... Qe2+ {[%clk 0:00:04.3]}
36. Kg1 {[%clk 0:00:26.7]} 36... Qe1+ {[%clk 0:00:05]} 37. Kg2 {[%clk
0:00:27.2]} 37... Qe2+ {[%clk 0:00:05.8]} 38. Kg1 {[%clk 0:00:27.8]} 38... Qd1+
{[%clk 0:00:06.5]} 39. Kg2 {[%clk 0:00:28]} 39... Qd2+ {[%clk 0:00:07.4]} 40.
Kg1 {[%clk 0:00:28.5]} 40... Qxb2 {[%clk 0:00:08.3]} 41. Qf4 {[%clk 0:00:21.5]}
41... Qb1+ {[%clk 0:00:08.3]} 42. Kg2 {[%clk 0:00:22.1]} 42... Qc2+ {[%clk
0:00:08.9]} 43. Kh3 {[%clk 0:00:19.8]} 43... Qh7+ {[%clk 0:00:09.2]} 44. Qh4
{[%clk 0:00:19.2]} 44... Qf5+ {[%clk 0:00:09.2]} 45. g4 {[%clk 0:00:17.6]} 45...
Qf4 {[%clk 0:00:06]} 46. g5 {[%clk 0:00:16.3]} 46... Qf5+ {[%clk 0:00:04]} 47.
Kg3 {[%clk 0:00:14.6]} 47... Nd5 {[%clk 0:00:02.4]} 48. Bxd5 {[%clk 0:00:14.6]}
48... Qxd5 {[%clk 0:00:03.3]} 49. Qf4 {[%clk 0:00:15.1]} 49... Qa5 {[%clk
0:00:02.5]} 50. Qb8+ {[%clk 0:00:15.1]} 50... Kh7 {[%clk 0:00:03.3]} 51. Qxa7
{[%clk 0:00:15.8]} 51... Qe1+ {[%clk 0:00:04.1]} 52. Kg2 {[%clk 0:00:15.8]}
52... Qe2+ {[%clk 0:00:04.6]} 53. Kg3 {[%clk 0:00:16.1]} 53... Qe1+ {[%clk
0:00:04.9]} 54. Kf4 {[%clk 0:00:16.6]} 54... e5+ {[%clk 0:00:02.2]} 55. dxe5
{[%clk 0:00:16.2]} 55... Qh4+ {[%clk 0:00:02.9]} 56. Ke3 {[%clk 0:00:16.3]}
56... Qxh2 {[%clk 0:00:02.5]} 57. Ke4 {[%clk 0:00:16.7]} 57... Qc2+ {[%clk
0:00:02.1]} 58. Kf4 {[%clk 0:00:16.7]} 58... Qd2+ {[%clk 0:00:01.8]} 59. Kg3
{[%clk 0:00:17]} 59... Qe1+ {[%clk 0:00:01.9]} 60. Kg2 {[%clk 0:00:16.7]} 60...
Qxe5 {[%clk 0:00:01.9]} 61. Qf2 {[%clk 0:00:16.4]} 61... Qxg5+ {[%clk
0:00:02.1]} 62. Kh1 {[%clk 0:00:17.1]} 62... Qa5 {[%clk 0:00:01.7]} 63. a7
{[%clk 0:00:17.1]} 63... Qa1+ {[%clk 0:00:01.8]} 64. Kg2 {[%clk 0:00:17.7]}
64... Qa6 {[%clk 0:00:02.3]} 65. Qd4 {[%clk 0:00:17.7]} 65... Qg6+ {[%clk
0:00:01.9]} 66. Qg4 {[%clk 0:00:16.7]} 66... Qc2+ {[%clk 0:00:02.5]} 67. Kh3
{[%clk 0:00:17.2]} 67... Qa2 {[%clk 0:00:02.2]} 68. Qe4+ {[%clk 0:00:17.6]}
68... g6 {[%clk 0:00:01.9]} 69. a8=Q {[%clk 0:00:18.5]} 1-0

[Event "Early-Titled-Tuesday-Blitz-March-19-2024"]
[Site "Chess.com"]
[Date "2024.03.19"]
[Round "7"]
[White "RebelJohnny"]
[Black "MightyGMpretender"]
[Result "1/2-1/2"]
[WhiteElo "2568"]
[BlackElo "2799"]
[TimeControl "180+1"]
[EndTime "9:20:09 PDT"]
[Termination "Game drawn by repetition"]

1. e4 {[%clk 0:03:00.9]} 1... e5 {[%clk 0:03:00]} 2. Nf3 {[%clk 0:03:00.6]} 2...
Nc6 {[%clk 0:03:00.4]} 3. Nc3 {[%clk 0:03:01.2]} 3... Nge7 {[%clk 0:02:51.4]} 4.
d4 {[%clk 0:03:00.5]} 4... exd4 {[%clk 0:02:51.2]} 5. Nxd4 {[%clk 0:03:01.4]}
5... Nxd4 {[%clk 0:02:51.9]} 6. Qxd4 {[%clk 0:03:01.4]} 6... Nc6 {[%clk
0:02:52.6]} 7. Qd2 {[%clk 0:02:57.6]} 7... Be7 {[%clk 0:02:40]} 8. b3 {[%clk
0:02:56.5]} 8... O-O {[%clk 0:02:38.4]} 9. Bb2 {[%clk 0:02:56.8]} 9... f5 {[%clk
0:02:21.9]} 10. O-O-O {[%clk 0:02:45.8]} 10... d6 {[%clk 0:02:12.8]} 11. Kb1
{[%clk 0:02:32.6]} 11... Bf6 {[%clk 0:02:07.5]} 12. exf5 {[%clk 0:02:02.6]}
12... Bxf5 {[%clk 0:02:06.9]} 13. Bd3 {[%clk 0:02:02.7]} 13... Qd7 {[%clk
0:02:02.7]} 14. Rhe1 {[%clk 0:01:56.8]} 14... Kh8 {[%clk 0:01:53.5]} 15. f3
{[%clk 0:01:50.3]} 15... Bxd3 {[%clk 0:01:42]} 16. Qxd3 {[%clk 0:01:51.2]} 16...
Ne5 {[%clk 0:01:41.8]} 17. Qe4 {[%clk 0:01:42.1]} 17... c6 {[%clk 0:01:22.2]}
18. f4 {[%clk 0:01:37.9]} 18... Ng6 {[%clk 0:01:20.1]} 19. g3 {[%clk 0:01:29.8]}
19... d5 {[%clk 0:01:18.8]} 20. Qf3 {[%clk 0:01:25.1]} 20... Rae8 {[%clk
0:01:14.2]} 21. h4 {[%clk 0:01:20.5]} 21... Kg8 {[%clk 0:01:02.3]} 22. h5 {[%clk
0:01:19.1]} 22... Nh8 {[%clk 0:01:02.3]} 23. g4 {[%clk 0:01:13.4]} 23... Nf7
{[%clk 0:01:02]} 24. g5 {[%clk 0:01:10.8]} 24... Bd8 {[%clk 0:00:30]} 25. h6
{[%clk 0:01:08.8]} 25... Rxe1 {[%clk 0:00:12.5]} 26. Rxe1 {[%clk 0:01:09.7]}
26... Re8 {[%clk 0:00:13.1]} 27. Rd1 {[%clk 0:00:54.3]} 27... Qf5 {[%clk
0:00:13.1]} 28. Rf1 {[%clk 0:00:28.2]} 28... Bb6 {[%clk 0:00:07.1]} 29. Na4
{[%clk 0:00:21.2]} 29... Nxg5 {[%clk 0:00:05.2]} 30. fxg5 {[%clk 0:00:10.7]}
30... Qxf3 {[%clk 0:00:05]} 31. Rxf3 {[%clk 0:00:10.6]} 31... Re1+ {[%clk
0:00:05.4]} 32. Bc1 {[%clk 0:00:11.2]} 32... Bd8 {[%clk 0:00:05.3]} 33. Re3
{[%clk 0:00:06.1]} 33... Rxe3 {[%clk 0:00:02.9]} 34. Bxe3 {[%clk 0:00:07]} 34...
Kf7 {[%clk 0:00:02.6]} 35. Nc5 {[%clk 0:00:06.3]} 35... Bb6 {[%clk 0:00:02.2]}
36. b4 {[%clk 0:00:05.1]} 36... Kg6 {[%clk 0:00:02.2]} 37. Kb2 {[%clk
0:00:04.7]} 37... gxh6 {[%clk 0:00:01.9]} 38. gxh6 {[%clk 0:00:05.6]} 38... d4
{[%clk 0:00:01.6]} 39. Bxd4 {[%clk 0:00:05.8]} 39... Kxh6 {[%clk 0:00:02]} 40.
Kc3 {[%clk 0:00:05.3]} 40... Kg6 {[%clk 0:00:01.9]} 41. Nd7 {[%clk 0:00:04.7]}
41... Bc7 {[%clk 0:00:01.2]} 42. Bxa7 {[%clk 0:00:04]} 42... h5 {[%clk
0:00:01.5]} 43. Bb8 {[%clk 0:00:04.2]} 43... Bxb8 {[%clk 0:00:01.3]} 44. Nxb8
{[%clk 0:00:04.5]} 44... h4 {[%clk 0:00:01.9]} 45. Nd7 {[%clk 0:00:04.2]} 45...
Kf5 {[%clk 0:00:02.4]} 46. Nc5 {[%clk 0:00:02.8]} 46... h3 {[%clk 0:00:02.6]}
47. Nd3 {[%clk 0:00:03.6]} 47... h2 {[%clk 0:00:02.2]} 48. Nf2 {[%clk
0:00:04.3]} 48... Kf4 {[%clk 0:00:02.7]} 49. Kd2 {[%clk 0:00:05]} 49... Kf3
{[%clk 0:00:03]} 50. Ke1 {[%clk 0:00:04.5]} 50... b5 {[%clk 0:00:03.4]} 51. Kf1
{[%clk 0:00:03.1]} 51... Kg3 {[%clk 0:00:02.9]} 52. Ke2 {[%clk 0:00:02.6]} 52...
Kg2 {[%clk 0:00:03]} 53. c3 {[%clk 0:00:02.7]} 53... Kg3 {[%clk 0:00:03.4]} 54.
Ke3 {[%clk 0:00:01.9]} 54... Kg2 {[%clk 0:00:03.5]} 55. a3 {[%clk 0:00:02.3]}
55... Kg3 {[%clk 0:00:03.9]} 56. Ne4+ {[%clk 0:00:02.6]} 56... Kg2 {[%clk
0:00:03.8]} 57. Nf2 {[%clk 0:00:03.2]} 57... Kg3 {[%clk 0:00:04.4]} 58. Ke2
{[%clk 0:00:03.9]} 58... Kg2 {[%clk 0:00:04.9]} 59. Nh1 {[%clk 0:00:04.6]} 59...
Kg1 {[%clk 0:00:04.1]} 60. Ng3 {[%clk 0:00:02.4]} 60... Kg2 {[%clk 0:00:04.5]}
61. Nh1 {[%clk 0:00:01.6]} 61... Kg1 {[%clk 0:00:04.3]} 62. Nf2 {[%clk
0:00:01.6]} 62... Kg2 {[%clk 0:00:04.7]} 63. Nh1 {[%clk 0:00:01.1]} 1/2-1/2